fUSD/lending_fUSD_20260420
["ID","MTS","AMOUNT","RATE_DAILY","PERIOD"]
[420851471,1776636642259,-500.0,0.0001,2]
[420851473,1776636642268,-500.0,0.0001,2]
[420851475,1776636642278,-500.0,0.0001,2]
[420851477,1776636642287,-500.0,0.0001,2]
[420851479,1776636642296,-500.0,0.0001,2]
[420851481,1776636642305,-500.0,0.0001,2]
[420851483,1776636642315,-500.0,0.0001,2]
[420851485,1776636642325,-500.0,0.0001,2]
[420851487,1776636642338,-500.0,0.0001,2]
[420851489,1776636642348,-500.0,0.0001,2]
[420851491,1776636642357,-500.0,0.0001,2]
[420851493,1776636642367,-500.0,0.0001,2]
[420851495,1776636642376,-500.0,0.0001,2]
[420851497,1776636642386,-500.0,0.0001,2]
[420851499,1776636642395,-500.0,0.0001,2]
[420851501,1776636642404,-500.0,0.0001,2]
[420851503,1776636642413,-500.0,0.0001,2]
[420851505,1776636642423,-500.0,0.0001,2]
[420851507,1776636642432,-500.0,0.0001,2]
[420851509,1776636642441,-500.0,0.0001,2]
[420851511,1776636642450,-500.0,0.0001,2]
[420851513,1776636642460,-500.0,0.0001,2]
[420851515,1776636642469,-500.0,0.0001,2]
[420851517,1776636642479,-500.0,0.0001,2]
[420851519,1776636642488,-500.0,0.0001,2]
[420851521,1776636642497,-500.0,0.0001,2]
[420851523,1776636642507,-500.0,0.0001,2]
[420851526,1776636642517,-500.0,0.0001,2]
[420851527,1776636642526,-500.0,0.0001,2]
[420851530,1776636642536,-500.0,0.0001,2]
[420851532,1776636642545,-500.0,0.0001,2]
[420851533,1776636642554,-500.0,0.0001,2]
[420851535,1776636642564,-500.0,0.0001,2]
[420851537,1776636642573,-500.0,0.0001,2]
[420851539,1776636642584,-500.0,0.0001,2]
[420851541,1776636642595,-500.0,0.0001,2]
[420851543,1776636642605,-500.0,0.0001,2]
[420851545,1776636642614,-500.0,0.0001,2]
[420851547,1776636642623,-500.0,0.0001,2]
[420851549,1776636642632,-500.0,0.0001,2]
[420851551,1776636642643,-500.0,0.0001,2]
[420851554,1776636642653,-500.0,0.0001,2]
[420851556,1776636642662,-500.0,0.0001,2]
[420851557,1776636642672,-500.0,0.0001,2]
[420851560,1776636642682,-500.0,0.0001,2]
[420851562,1776636642690,-500.0,0.0001,2]
[420851564,1776636642699,-500.0,0.0001,2]
[420851566,1776636642708,-500.0,0.0001,2]
[420851568,1776636642717,-500.0,0.0001,2]
[420851570,1776636642728,-500.0,0.0001,2]
[420851571,1776636642737,-500.0,0.0001,2]
[420851573,1776636642746,-500.0,0.0001,2]
[420851575,1776636642755,-500.0,0.0001,2]
[420851577,1776636642764,-500.0,0.0001,2]
[420851579,1776636642773,-500.0,0.0001,2]
[420851581,1776636642783,-500.0,0.0001,2]
[420851583,1776636642792,-72.15035972,0.0001,2]
[420851586,1776636642805,-427.84964028,0.0001,2]
[420851588,1776636642814,-168.44835972,0.0001,2]
[420851669,1776636643329,-331.55164028,0.0001,2]
[420851671,1776636643338,-500.0,0.0001,2]
[420851673,1776636643347,-500.0,0.0001,2]
[420851675,1776636643356,-500.0,0.0001,2]
[420851678,1776636643365,-500.0,0.0001,2]
[420851680,1776636643375,-500.0,0.0001,2]
[420851682,1776636643384,-500.0,0.0001,2]
[420851684,1776636643393,-500.0,0.0001,2]
[420851686,1776636643402,-500.0,0.0001,2]
[420851688,1776636643411,-500.0,0.0001,2]
[420851690,1776636643420,-150.0,0.0001001,2]
[420851692,1776636643429,-150.0,0.00010017,2]
[420851694,1776636643439,-1091.0,0.00010041,5]
[420851695,1776636643449,-150.0,0.00010044,2]
[420851698,1776636643459,-150.0,0.00010044,2]
[420851700,1776636643468,-500.0,0.00010048,2]
[420851702,1776636643478,-500.0,0.00010048,2]
[420851704,1776636643487,-489.75086921,0.00010048,2]
[420851706,1776636643497,-500.0,0.00010048,2]
[420851708,1776636643506,-580.91831073,0.00010048,2]
[420851710,1776636643515,-210.06958977,0.00010048,2]
[420851712,1776636643525,-596.30827204,0.00010048,2]
[420851714,1776636643534,-500.0,0.00010048,2]
[420851716,1776636643543,-500.0,0.00010048,2]
[420851718,1776636643552,-9552.16786547,0.00010049,2]
[420851720,1776636643562,-150.0,0.00010066,2]
[420851722,1776636643571,-150.0,0.00010074,2]
[420851724,1776636643580,-150.0,0.00010084,2]
[420851726,1776636643589,-9905.5980765,0.00010104,2]
[420851728,1776636643599,-250.0,0.00010115,2]
[420851730,1776636643608,-150.0,0.00010115,2]
[420851732,1776636643617,-150.0,0.00010123,2]
[420851734,1776636643627,-150.0,0.00010151,2]
[420851736,1776636643636,-150.0,0.00010151,2]
[420851738,1776636643645,-150.0,0.00010151,2]
[420851740,1776636643655,-9329.98278035,0.00010159,2]
[420851742,1776636643664,-150.0,0.00010179,2]
[420851745,1776636643673,-150.0,0.00010186,2]
[420851748,1776636643682,-150.0,0.00010217,2]
[420851751,1776636643691,-150.0,0.00010227,2]
[420851754,1776636643700,-150.0,0.00010235,2]
[420851757,1776636643709,-150.0,0.00010258,2]
[420851760,1776636643719,-150.0,0.00010258,2]
[420851763,1776636643728,-150.0,0.00010284,2]
[420851766,1776636643738,-150.0,0.00010291,2]
[420851768,1776636643747,-150.0,0.00010303,2]
[420851770,1776636643756,-182.34,0.0001032,2]
[420851772,1776636643765,-150.0,0.00010329,2]
[420851774,1776636643774,-150.0,0.00010348,2]
[420851776,1776636643783,-150.0,0.00010351,2]
[420851778,1776636643792,-150.0,0.0001038,2]
[420851780,1776636643801,-150.0,0.000104,2]
[420851782,1776636643811,-150.0,0.00010404,2]
[420851784,1776636643821,-150.0,0.00010418,2]
[420851786,1776636643830,-150.0,0.00010456,2]
[420851788,1776636643839,-150.0,0.0001046,2]
[420851790,1776636643848,-150.0,0.00010471,2]
[420851792,1776636643858,-150.0,0.00010471,2]
[420851794,1776636643867,-150.0,0.00010485,2]
[420851796,1776636643876,-4905.6909696,0.00010486,2]
[420851798,1776636643885,-1377.42282659,0.00010487,2]
[420851800,1776636643893,-181.08010149,0.00010487,2]
[420851802,1776636643902,-181.10107135,0.00010487,2]
[420851804,1776636643912,-150.0,0.00010516,2]
[420851806,1776636643921,-150.0,0.00010532,2]
[420851808,1776636643930,-150.0,0.00010542,2]
[420851810,1776636643939,-215.38143999,0.00010548,2]
[420851812,1776636643948,-150.0,0.00010551,2]
[420851813,1776636643958,-150.0,0.00010572,2]
[420851815,1776636643968,-976.1077,0.000106,2]
[420851817,1776636643977,-5000.0,0.000106,2]
[420851819,1776636643986,-150.0,0.00010609,2]
[420851821,1776636643995,-150.0,0.00010614,2]
[420851823,1776636644004,-250.0,0.00010614,2]
[420851825,1776636644013,-250.0,0.00010614,2]
[420851828,1776636644022,-150.0,0.00010618,2]
[420851830,1776636644032,-150.0,0.00010629,2]
[420851832,1776636644041,-250.0,0.00010673,2]
[420851834,1776636644050,-150.0,0.00010685,2]
[420851836,1776636644059,-150.0,0.00010685,2]
[420851837,1776636644068,-150.7678493,0.00010685,2]
[420851840,1776636644079,-150.0,0.00010685,2]
[420851842,1776636644088,-151.03186045,0.00010685,2]
[420851844,1776636644096,-150.0,0.00010685,2]
[420851846,1776636644106,-150.0,0.00010685,2]
[420851848,1776636644115,-201.42697263,0.00010685,2]
[420851850,1776636644125,-150.0,0.00010685,2]
[420851852,1776636644134,-150.0,0.00010685,2]
[420851854,1776636644144,-150.0,0.00010685,2]
[420851856,1776636644153,-86740.30180425,0.000107,2]
[420851858,1776636644166,-340.57614201,0.000107,2]
[420851860,1776636644177,-4736.0,0.000107,2]
[420851864,1776636644203,-2968.0,0.000107,2]
[420851868,1776636644225,-2621.97949905,0.000107,2]
[420851870,1776636644236,-530.20958473,0.000107,2]
[420851984,1776636645986,-264.97558999,0.000107,2]
[420851987,1776636646152,-321.12499015,0.000107,2]
[420851988,1776636646209,-26537.75759973,0.000107,2]
[420851989,1776636646220,-257.61331175,0.000107,2]
[420851990,1776636646283,-3700.0,0.000107,2]
[420851991,1776636646324,-1819.78063424,0.000107,2]
[420851992,1776636646335,-1851.46488401,0.000107,2]
[420851993,1776636646346,-1776.513,0.000107,2]
[420851994,1776636646382,-2858.8945,0.000107,2]
[420851995,1776636646483,-87787.63992677,0.000107,2]
[420851996,1776636646497,-273.89372273,0.000107,2]
[420851997,1776636646512,-2187.48845603,0.000107,2]
[420852002,1776636653284,150.0,9.544e-05,2]
[420852003,1776636653389,150.0,9.844e-05,2]
[420852004,1776636655240,500.0,9.268e-05,2]
[420852005,1776636656639,277.0,9.844e-05,2]
[420852006,1776636657325,236.16329328,9.843e-05,2]
[420852007,1776636657354,270.0,9.843e-05,2]
[420852008,1776636657386,500.0,9.843e-05,2]
[420852009,1776636657418,500.0,9.843e-05,2]
[420852010,1776636657452,492.98710924,9.843e-05,2]
[420852011,1776636667573,924.145614,9.794e-05,2]
[420852012,1776636725498,873.0,9.794e-05,3]
[420852014,1776636774830,162.0,9.794e-05,3]
[420852018,1776636781835,7625.044386,9.744e-05,2]
[420852019,1776636781869,10000.01,9.744e-05,2]
[420852020,1776636808541,-200.0,9.671e-05,2]
[420852023,1776637089254,171.92,9.411e-05,2]
[420852024,1776637235105,500.0,9.407e-05,2]
[420852025,1776637310588,1127.33,9.176e-05,2]
[420852026,1776637419407,2000.0,9.185e-05,2]
[420852027,1776637468918,216.88,9.139e-05,2]
[420852029,1776637510426,9783.13,9.38e-05,2]
[420852030,1776637571100,-256.0,9.111e-05,2]
[420852031,1776637571126,-88.62610743,9.111e-05,2]
[420852032,1776637584740,818.02182404,8.894e-05,2]
[420852033,1776637584764,2643.59876163,8.894e-05,2]
[420852034,1776637584788,1378.58941433,8.894e-05,2]
[420852048,1776637832177,-150.0,8.792e-05,2]
[420852049,1776637832187,-764.31806116,9.019e-05,2]
[420852050,1776637832199,-570.85193884,9.019e-05,2]
[420852051,1776637832208,-222.56790165,9.103e-05,2]
[420852052,1776637832220,-569.13169042,9.103e-05,2]
[420852053,1776637832236,-672.11040793,9.103e-05,2]
[420852054,1776637832247,-61.37389257,9.111e-05,2]
[420852055,1776637832257,-632.01513129,9.321e-05,2]
[420852056,1776637832267,-236.2458,9.328e-05,2]
[420852057,1776637832276,-150.0,9.411e-05,2]
[420852058,1776637832286,-300.0,9.428e-05,2]
[420852059,1776637832297,-225.88807547,9.428e-05,2]
[420852060,1776637832309,-974.11192453,9.428e-05,2]
[420852061,1776637832320,-300.0,9.428e-05,2]
[420852062,1776637832329,-4901.89,9.43e-05,2]
[420852063,1776637832341,-11419.81,9.43e-05,2]
[420852064,1776637832352,-250.0,9.443e-05,2]
[420852065,1776637832361,-23807.0278,9.544e-05,2]
[420852066,1776637832371,-578.20924308,9.573e-05,2]
[420852067,1776637832381,-150.0,9.616e-05,2]
[420852068,1776637832390,-150.0,9.616e-05,2]
[420852069,1776637832400,-150.0,9.616e-05,2]
[420852070,1776637832410,-150.0,9.616e-05,2]
[420852071,1776637832420,-150.0,9.616e-05,2]
[420852072,1776637832429,-292.92686761,9.616e-05,2]
[420852073,1776637832439,-150.0,9.616e-05,2]
[420852074,1776637832448,-150.0,9.616e-05,2]
[420852075,1776637832458,-150.0,9.616e-05,2]
[420852076,1776637832468,-150.0,9.616e-05,2]
[420852078,1776637832478,-150.0,9.616e-05,2]
[420852080,1776637832488,-22187.508,9.641e-05,2]
[420852082,1776637832498,-5000.0,9.644e-05,2]
[420852084,1776637832507,-162.0,9.671e-05,3]
[420852086,1776637832522,-939.0,9.671e-05,3]
[420852089,1776637832534,-156.0,9.671e-05,3]
[420852091,1776637832544,-152.0,9.671e-05,3]
[420852093,1776637832554,-150.0,9.711e-05,2]
[420852095,1776637832564,-150.0,9.714e-05,2]
[420852097,1776637832574,-500.0,9.723e-05,2]
[420852099,1776637832584,-500.0,9.723e-05,2]
[420852101,1776637832594,-500.92228137,9.723e-05,2]
[420852103,1776637832604,-500.0,9.723e-05,2]
[420852105,1776637832614,-500.48760192,9.723e-05,2]
[420852107,1776637832624,-500.0,9.723e-05,2]
[420852109,1776637832635,-2159.83,9.723e-05,2]
[420852111,1776637832645,-176.937,9.723e-05,2]
[420852113,1776637832655,-150.0,9.735e-05,2]
[420852115,1776637832664,-670.58624095,9.738e-05,2]
[420852117,1776637832674,-1328.27659266,9.738e-05,2]
[420852119,1776637832684,-1000.0,9.738e-05,2]
[420852121,1776637832694,-1000.0,9.738e-05,2]
[420852122,1776637832703,-1000.0,9.738e-05,2]
[420852123,1776637832715,-1000.0,9.738e-05,2]
[420852124,1776637832726,-1000.0,9.738e-05,2]
[420852125,1776637832736,-1000.0,9.738e-05,2]
[420852126,1776637832747,-1000.0,9.738e-05,2]
[420852127,1776637832758,-257.46906522,9.738e-05,2]
[420852128,1776637832769,-174.61919141,9.738e-05,2]
[420852129,1776637832779,-508.95216885,9.738e-05,2]
[420852130,1776637832792,-151.0,9.741e-05,2]
[420852131,1776637832802,-9999.99,9.741e-05,2]
[420852132,1776637832813,-22640.93,9.741e-05,2]
[420852133,1776637832823,-9999.99,9.741e-05,2]
[420852134,1776637832835,-999.99,9.741e-05,2]
[420852135,1776637832846,-3196.7,9.741e-05,2]
[420852136,1776637832858,-1551.81,9.741e-05,2]
[420852137,1776637832867,-150.99,9.741e-05,2]
[420852138,1776637832877,-299.99,9.741e-05,2]
[420852139,1776637832887,-1401.3,9.741e-05,2]
[420852140,1776637832898,-9999.99,9.741e-05,2]
[420852141,1776637832914,-250.0,9.743e-05,2]
[420852142,1776637832925,-337.22,9.743e-05,2]
[420852143,1776637832935,-690.45804203,9.793e-05,2]
[420852144,1776637832947,-150.0,9.811e-05,2]
[420852145,1776637832959,-352.49960927,9.838e-05,2]
[420852146,1776637832969,-150.0,9.854e-05,2]
[420852147,1776637832978,-1300.0,9.9e-05,3]
[420852148,1776637832989,-150.0,9.908e-05,2]
[420852149,1776637832999,-2869.8,9.927e-05,2]
[420852150,1776637833010,-500.0,9.956e-05,2]
[420852151,1776637833019,-500.0,9.956e-05,2]
[420852152,1776637833030,-500.0,9.956e-05,2]
[420852153,1776637833039,-312.67777592,9.956e-05,2]
[420852154,1776637833049,-362.00417451,9.956e-05,2]
[420852155,1776637833059,-500.0,9.956e-05,2]
[420852156,1776637833068,-166.35933564,9.956e-05,2]
[420852157,1776637833079,-500.29614553,9.956e-05,2]
[420852158,1776637833088,-500.0,9.956e-05,2]
[420852159,1776637833099,-184.82,9.96e-05,2]
[420852160,1776637833110,-150.0,9.973e-05,2]
[420852161,1776637833120,-151.0,0.0001,2]
[420852162,1776637833131,-500.0,0.0001,2]
[420852163,1776637833141,-500.0,0.0001,2]
[420852164,1776637833152,-500.0,0.0001,2]
[420852165,1776637833162,-151.0,0.0001,2]
[420852166,1776637833172,-500.0,0.0001,2]
[420852167,1776637833183,-151.0,0.0001,2]
[420852168,1776637833193,-200.0,0.0001,2]
[420852169,1776637833203,-151.0,0.0001,2]
[420852170,1776637833213,-500.0,0.0001,2]
[420852171,1776637833223,-151.0,0.0001,2]
[420852172,1776637833234,-500.0,0.0001,2]
[420852173,1776637833244,-151.0,0.0001,2]
[420852174,1776637833255,-500.0,0.0001,2]
[420852175,1776637833265,-151.0,0.0001,2]
[420852176,1776637833275,-500.0,0.0001,2]
[420852177,1776637833285,-151.0,0.0001,2]
[420852178,1776637833295,-500.0,0.0001,2]
[420852179,1776637833309,-151.0,0.0001,2]
[420852180,1776637833320,-500.0,0.0001,2]
[420852181,1776637833331,-151.0,0.0001,2]
[420852182,1776637833341,-500.0,0.0001,2]
[420852183,1776637833351,-151.0,0.0001,2]
[420852184,1776637833361,-500.0,0.0001,2]
[420852185,1776637833371,-151.0,0.0001,2]
[420852186,1776637833380,-151.0,0.0001,2]
[420852187,1776637833390,-500.0,0.0001,2]
[420852188,1776637833400,-2700.0,0.0001,3]
[420852189,1776637833410,-206.37309139,0.0001,2]
[420852190,1776637833421,-151.0,0.0001,2]
[420852191,1776637833431,-151.0,0.0001,2]
[420852192,1776637833442,-151.0,0.0001,2]
[420852193,1776637833452,-151.0,0.0001,2]
[420852194,1776637833462,-151.0,0.0001,2]
[420852195,1776637833472,-150.0,0.00010005,2]
[420852196,1776637833482,-150.0,0.00010011,2]
[420852197,1776637833493,-337.22,0.00010017,2]
[420852198,1776637833504,-150.0,0.00010091,2]
[420852199,1776637833516,-150.0,0.00010102,2]
[420852200,1776637833527,-150.0,0.00010151,2]
[420852201,1776637833537,-150.0,0.00010199,2]
[420852202,1776637833548,-152.0,0.0001021,7]
[420852203,1776637833559,-151.0,0.0001021,2]
[420852204,1776637833570,-157.64,0.0001021,2]
[420852205,1776637833580,-150.0,0.0001021,2]
[420852206,1776637833590,-152.0,0.00010221,7]
[420852207,1776637833600,-152.0,0.00010221,7]
[420852208,1776637833610,-1463.81,0.00010241,2]
[420852209,1776637833622,-500.0,0.00010271,2]
[420852210,1776637833632,-1000.0,0.00010271,2]
[420852211,1776637833644,-1000.0,0.00010271,2]
[420852212,1776637833655,-1377.42282659,0.00010286,2]
[420852213,1776637833665,-181.08010149,0.00010286,2]
[420852214,1776637833674,-337.22,0.00010291,2]
[420852215,1776637833684,-150.0,0.00010296,2]
[420852216,1776637833693,-150.0,0.00010329,2]
[420852217,1776637833703,-2000.0,0.00010333,2]
[420852218,1776637833713,-171.92,0.00010352,2]
[420852219,1776637833723,-193.0,0.00010371,2]
[420852220,1776637833732,-420.0,0.00010371,2]
[420852221,1776637833742,-420.0,0.00010371,2]
[420852222,1776637833752,-150.0,0.00010394,2]
[420852223,1776637833762,-600.0,0.000104,5]
[420852224,1776637833771,-150.0,0.00010447,2]
[420852225,1776637833782,-2547.0,0.00010475,5]
[420852226,1776637833792,-150.0,0.00010491,2]
[420852227,1776637833802,-727.81460999,0.00010504,2]
[420852228,1776637833812,-1000.0,0.00010504,2]
[420852229,1776637833822,-1000.0,0.00010504,2]
[420852230,1776637833832,-477.68136442,0.00010504,2]
[420852231,1776637833843,-500.0,0.00010504,2]
[420852232,1776637833853,-337.22,0.00010565,2]
[420852233,1776637833864,-150.0,0.00010566,2]
[420852234,1776637833875,-150.0,0.00010588,2]
[420852235,1776637833885,-250.0,0.00010641,2]
[420852236,1776637833895,-250.0,0.00010641,2]
[420852237,1776637833904,-500.0,0.00010673,2]
[420852238,1776637833915,-351.93451756,0.0001068,2]
[420852239,1776637833924,-180.52766364,0.00010685,2]
[420852240,1776637833935,-222.77874723,0.00010685,2]
[420852241,1776637833946,-299.99999999,0.00010685,2]
[420852242,1776637833956,-150.0,0.00010685,2]
[420852243,1776637833965,-284.23043053,0.00010685,2]
[420852244,1776637833975,-271.3113675,0.00010685,2]
[420852245,1776637833984,-65332.94236298,0.0001069,2]
[420852246,1776637833999,-75578.27502503,0.0001069,2]
[420852247,1776637834011,-20329.92171584,0.0001069,2]
[420852248,1776637834023,-41190.33955695,0.0001069,2]
[420852249,1776637834036,-1254.41808677,0.0001069,2]
[420852250,1776637834087,-760.36475751,0.0001069,2]
[420852251,1776637834100,-15171.78584012,0.0001069,2]
[420852252,1776637834114,-4366.79847194,0.0001069,2]
[420852253,1776637834127,-970.44892758,0.0001069,2]
[420852254,1776637834140,-679.07447758,0.0001069,2]
[420852264,1776637840009,-695.9,0.0001069,2]
[420852265,1776637840020,-3980.21091982,0.0001069,2]
[420852266,1776637840031,-1884.13741114,0.0001069,2]
[420852267,1776637840069,-2200.0,0.0001069,2]
[420852268,1776637840080,-4808.94648525,0.0001069,2]
[420852269,1776637840095,-425.40828874,0.0001069,2]
[420852270,1776637840106,-333.75,0.0001069,2]
[420852276,1776637840684,-26531.28313995,0.0001069,2]
[420852277,1776637840694,-151.0,0.0001069,2]
[420852278,1776637840704,-151.0,0.0001069,2]
[420852279,1776637840713,-1655.0,0.000107,5]
[420852280,1776637840722,-45296.71686006,0.000107,2]
[420852281,1776637840801,-1476.0,0.000107,2]
[420852282,1776637840861,-2078.89105707,0.000107,2]
[420852310,1776637843425,-18509.43626146,0.000107,2]
[420852311,1776637843870,-361.02099124,0.000107,2]
[420852312,1776637843987,-376.63660047,0.000107,2]
[420852323,1776637846252,-1869.7789087,0.00010486,2]
[420852324,1776637846264,-5275.05015234,0.000107,2]
[420852325,1776637846509,-4133.57995,0.000107,2]
[420852326,1776637846521,-256.62616799,0.000107,2]
[420852327,1776637846546,-6552.59999987,0.000107,2]
[420852328,1776637846558,-8479.35632649,0.000107,2]
[420852329,1776637846570,-845.000003,0.000107,2]
[420852330,1776637846608,-83160.1806181,0.000107,2]
[420852331,1776637846620,-5050.80940847,0.000107,2]
[420852336,1776637857923,150.0,8.663e-05,2]
[420852337,1776637873072,892.0,8.663e-05,3]
[420852338,1776637923759,208.27,8.903e-05,2]
[420852339,1776637935492,941.0,8.663e-05,3]
[420852340,1776637992396,894.0,8.663e-05,3]
[420852341,1776638049185,943.0,8.663e-05,3]
[420852342,1776638055835,154.0,8.663e-05,3]
[420852344,1776638062031,162.0,8.663e-05,3]
[420852345,1776638083895,150.0,0.00015797,30]
[420852346,1776638134606,10000.0,8.953e-05,2]
[420852347,1776638164617,0.01,8.953e-05,2]
[420852348,1776638164639,4871.05,8.953e-05,2]
[420852349,1776638241258,150.0,8.743e-05,2]
[420852350,1776638308868,150.0,8.721e-05,2]
[420852351,1776638387435,150.0,8.713e-05,2]
[420852352,1776638431504,500.0,0.00016226,30]
[420852353,1776638431656,500.0,0.00016226,30]
[420852354,1776638431809,500.0,0.00016226,30]
[420852355,1776638431968,500.0,0.00016226,30]
[420852356,1776638432569,627.97306217,0.00016226,30]
[420852357,1776638454140,150.0,8.676e-05,2]
[420852358,1776638518921,150.0,8.676e-05,2]
[420852362,1776638621651,9850.01,8.735e-05,2]
[420852363,1776638621679,2074.57,8.735e-05,2]
[420852364,1776638646694,150.0,8.714e-05,2]
[420852365,1776638709244,519.648493,8.918e-05,2]
[420852366,1776638738942,150.0,8.581e-05,2]
[420852367,1776638738981,150.0,8.899e-05,2]
[420852368,1776638739151,150.0,8.581e-05,2]
[420852369,1776638745332,150.0,8.581e-05,2]
[420852370,1776638745364,150.0,8.819e-05,2]
[420852371,1776638752646,150.0,8.581e-05,2]
[420852372,1776638752700,150.0,8.899e-05,2]
[420852373,1776638757291,150.0,8.581e-05,2]
[420852374,1776638757337,150.0,8.899e-05,2]
[420852375,1776638757678,150.0,8.581e-05,2]
[420852376,1776638761533,3027.36,8.551e-05,2]
[420852377,1776638765272,839.39,0.00016226,30]
[420852378,1776638776923,150.0,8.681e-05,2]
[420852379,1776638834145,1400.0,8.9e-05,3]
[420852380,1776638842186,150.0,8.681e-05,2]
[420852381,1776638912586,1028.431507,8.5e-05,2]
[420852382,1776638912609,10000.01,8.5e-05,2]
[420852383,1776638912631,10000.01,8.5e-05,2]
[420852384,1776638912655,10000.01,8.5e-05,2]
[420852385,1776638921871,-161.0,8.329e-05,2]
[420852386,1776638921894,-31.00153273,8.5e-05,2]
[420852387,1776639011036,-150.0,8.22e-05,2]
[420852388,1776639011060,-136.0,8.22e-05,2]
[420852406,1776639032212,-121.0,8.22e-05,2]
[420852407,1776639032222,-214.67,8.394e-05,2]
[420852408,1776639032232,-1500.0,8.435e-05,2]
[420852409,1776639032242,-300.0,8.499e-05,2]
[420852410,1776639032251,-345.61,8.499e-05,2]
[420852411,1776639032263,-854.39,8.499e-05,2]
[420852412,1776639032272,-300.0,8.499e-05,2]
[420852413,1776639032282,-153.96276887,8.5e-05,2]
[420852414,1776639032292,-75737.44878182,8.5e-05,2]
[420852415,1776639032333,-557.92409173,8.5e-05,2]
[420852416,1776639032344,-5438.01816079,8.5e-05,2]
[420852417,1776639032360,-5344.02188488,8.5e-05,2]
[420852418,1776639032372,-5021.84404105,8.5e-05,2]
[420852419,1776639032382,-150.0,8.52e-05,2]
[420852420,1776639032392,-150.0,8.963e-05,2]
[420852421,1776639032401,-2800.0,9e-05,3]
[420852422,1776639032411,-445.0009,9.011e-05,2]
[420852423,1776639032421,-150.0,9.058e-05,2]
[420852424,1776639032430,-150.0,9.058e-05,2]
[420852425,1776639032440,-2645.11,9.094e-05,2]
[420852426,1776639032449,-300.0,9.122e-05,2]
[420852427,1776639032459,-9514.06,9.123e-05,2]
[420852428,1776639032468,-150.0,9.216e-05,2]
[420852429,1776639032478,-150.0,9.216e-05,2]
[420852430,1776639032487,-150.0,9.216e-05,2]
[420852431,1776639032497,-342.82560845,9.243e-05,2]
[420852432,1776639032507,-500.0,9.243e-05,2]
[420852433,1776639032517,-166.25726564,9.243e-05,2]
[420852434,1776639032527,-500.0,9.243e-05,2]
[420852435,1776639032536,-558.82376432,9.243e-05,2]
[420852436,1776639032545,-500.0,9.243e-05,2]
[420852437,1776639032555,-188.36146429,9.243e-05,2]
[420852438,1776639032565,-500.0,9.243e-05,2]
[420852439,1776639032575,-500.0,9.243e-05,2]
[420852440,1776639032586,-326084.7149,9.244e-05,2]
[420852441,1776639032602,-591.8417,9.244e-05,2]
[420852442,1776639032613,-150.0,9.296e-05,2]
[420852443,1776639032622,-194.8915,9.343e-05,2]
[420852444,1776639032633,-370.2411,9.343e-05,2]
[420852445,1776639032643,-150.0,9.343e-05,2]
[420852446,1776639032653,-98780.2694,9.344e-05,2]
[420852447,1776639032662,-6781.9208,9.344e-05,2]
[420852448,1776639032672,-300.0,9.349e-05,2]
[420852449,1776639032682,-420.0,9.349e-05,2]
[420852450,1776639032691,-1680.0,9.349e-05,2]
[420852451,1776639032701,-9999.99,9.423e-05,2]
[420852452,1776639032711,-299.99,9.423e-05,2]
[420852453,1776639032720,-1075.8,9.423e-05,2]
[420852454,1776639032730,-9999.99,9.423e-05,2]